Cogmind - Beta 15 @@@ ROGUE MODE // 2025.05.23 @ 17:39:03 Player: Cog on my mind Result: Destroyed by H-55 Commando with Assault Rifle Performance ------------- Evolutions (0) 0 Regions Visited (4) 800 Robots Destroyed (47) 235 Value Destroyed (1213) 1213 Prototype IDs (15) 300 Alien Tech Used (0) 0 Bonus (0) 0 TOTAL SCORE: 2548 Bonus ------- None Cogmind --------- Core Integrity 0/250 Matter 150/300 Energy 99/100 System Corruption 4% Temperature Cool (0) Movement Core (50) Location -7/Recycling Parts ------- > --- POWER (1) -------- (None) > --- PROPULSION (2) --- (None) > --- UTILITY (2) ------ (None) > --- WEAPON (2) ------- (None) > --- INVENTORY (5) ---- Arachnoskeleton Scrap Shield Peak State ------------ > --- POWER ------------ Subdweller Power Source > --- PROPULSION ------- Light Treads Spiked Treads > --- UTILITY ---------- Large Storage Unit Makeshift System Restoration Module > --- WEAPON ----------- Subdweller Beam Cannon Battle Cannon > --- INVENTORY -------- Subdweller Power Source Arachnoskeleton Subdweller Monowheel Improved Heat Sink High-capacity Matter Pod Seismic Detector Scrap Shield Subdweller Beam Cannon Subdweller Beam Cannon Rocket Launcher Subdweller Shrapnel Launcher Shrapnel Trap [Rating: 18] Favorites ----------- Power Ion Engine Engine Ion Engine Propulsion Light Treads Treads Light Treads Utility Seismic Detector Device Seismic Detector Storage Large Storage Unit Weapon EM Pulse Gun Energy Gun EM Pulse Gun Energy Cannon Subdweller Beam Cannon Ballistic Gun Light Assault Rifle Ballistic Cannon Battle Cannon Launcher Rocket Launcher Special Weapon Mining Laser Build | -11 -10 -10 -10 -7 ------- Run | Yrd Mat Min Sub Rec Slots Evolved . | . . . . . Power . | . . . . . Propulsion . | . . . . . Utility . | . . . . . Weapon . | . . . . . Parts Attached 28 | 7 3 5 11 2 Power 4 | 1 . . 2 1 Engine 4 | 1 . . 2 1 Core . | . . . . . Reactor . | . . . . . Propulsion 5 | 2 . . 3 . Treads 5 | 2 . . 3 . Leg . | . . . . . Wheel . | . . . . . Hover . | . . . . . Flight . | . . . . . Utility 5 | 2 2 . . 1 Device 2 | 1 . . . 1 Storage 3 | 1 2 . . . Processor . | . . . . . Hackware . | . . . . . Protection . | . . . . . Artifact . | . . . . . Weapon 14 | 2 1 5 6 . Energy Gun 4 | 2 . 2 . . Energy Cannon 3 | . . . 3 . Ballistic Gun 1 | . . 1 . . Ballistic Cannon 2 | . . 1 1 . Launcher 3 | . . 1 2 . Special Weapon 1 | . 1 . . . Impact Weapon . | . . . . . Slashing Weapon . | . . . . . Piercing Weapon . | . . . . . Special Melee Weapon . | . . . . . Unidentified Prototypes . | . . . . . Parts Lost 6 | . . 2 3 1 Power 2 | . . . 1 1 Propulsion 2 | . . . 2 . Utility . | . . . . . Weapon 2 | . . 2 . . Highest Loss Streak 2 | . . 2 1 1 To Critical Strikes . | . . . . . Average Backups 11 | 1 9 13 11 8 Power . | . 1 1 . . Propulsion 4 | . 5 7 3 1 Utility 2 | . 1 1 2 3 Weapon 3 | . 2 4 4 3 Tool/Special . | . . . . . Unused Backups 15 | . 1 1 7 6 Power 1 | . . 1 . . Propulsion 8 | . 1 . 5 2 Utility 4 | . . . 1 3 Weapon 2 | . . . 1 1 Tool/Special . | . . . . . Average Slot Usage (%) 99 | . 100 100 99 100 Engine 13 | . 14 14 13 14 Treads 27 | . 28 28 27 28 Device 14 | . 14 14 14 14 Storage 14 | . 14 14 14 14 Energy Gun 10 | . 27 13 1 . Energy Cannon 7 | . . . 13 17 Ballistic Cannon 8 | . . 10 11 10 Peak Build Rating 18 | 7 8 9 15 18 Average Rating 10 | 5 7 7 12 13 On Entrance 7 | . 7 8 8 15 Naked Turns 9 | . . . . 9 Heaviest Build 42 | 15 30 31 42 41 Greatest Support 40 | 40 40 40 40 40 Greatest Overweight (x) 1 | 1 . . 1 1 Average Overweight (x) . | . . . . . Largest Inventory Capacity 15 | 8 15 15 15 15 Average Capacity 14 | 7 12 15 15 12 Most Carried 15 | 4 14 14 15 15 Average Carried 12 | 1 9 13 14 12 Final Capacity 15 | 8 15 15 15 5 Final Carried 15 | 4 14 14 15 5 Class Distribution -------------------- 81% | Mutant 18% | Scavenger-Mutant Dominant Class ---------------- Mutant | -10/Materials Mutant | -10/Mines Mutant | -10/Subcaves Mutant | -7/Recycling Resources | -11 -10 -10 -10 -7 ----------- Run | Yrd Mat Min Sub Rec Matter Collected 1374 | 270 276 124 704 . Remotely . | . . . . . Salvage Created 1291 | 112 424 117 638 . Parts 98 | 6 26 14 52 . Haulers Intercepted 2 | . 2 . . . Recyclers Shooed . | . . . . . Parts Field Recycled . | . . . . . Retrieved Matter . | . . . . . Parts Self-Destructed 15 | . . . 15 . Prevented . | . . . . . Kills | -11 -10 -10 -10 -7 ------- Run | Yrd Mat Min Sub Rec Combat Hostiles Destroyed 36 | . 7 5 24 . Guns 7 | . 6 1 . . Cannons 13 | . . 1 12 . AOE 12 | . . 3 9 . Classes Destroyed 10 | 2 6 . 2 . Worker 1 | . 1 . . . Tunneler 1 | 1 . . . . Hauler 2 | . 2 . . . Recycler 1 | 1 . . . . Operator 1 | . 1 . . . Turret 2 | . . . 2 . Watcher 3 | . 3 . . . Swarmer 13 | . 3 3 7 . Grunt 8 | . 4 2 2 . Subdweller 15 | . . . 15 . Best Kill Streak 6 | 2 5 3 6 . Combat Bots Only 4 | . 4 3 4 . Max Kills in Single Turn 3 | 1 2 3 3 . Gunslinging . | . . . . . Exploded 3 | . . 3 3 . Melee . | . . . . . Uniques/NPCs Destroyed . | . . . . . Combat | -11 -10 -10 -10 -7 -------- Run | Yrd Mat Min Sub Rec Hostile Shots Fired 116 | . 27 18 51 20 Missed 32 | . 10 3 13 6 Hits 84 | . 17 15 38 14 Melee 3 | . . . . 3 Projectile 81 | . 17 15 38 11 Critical Strikes 2 | . . . 1 1 Damage Taken 1313 | . 196 195 712 210 Core 259 | . 28 41 99 91 Absorbed by Shields . | . . . . . Core Remaining (%) 100 | 100 . . . . Volleys Fired 123 | 3 32 10 77 1 Largest 2 | 2 2 2 2 2 Hottest 160 | 80 100 100 160 160 Shots Fired 201 | 6 62 15 116 2 Gun 80 | 6 60 8 6 . Cannon 101 | . . 2 97 2 Launcher 15 | . . 2 13 . Special 5 | . 2 3 . . Kinetic 49 | . . 2 47 . Thermal 70 | . 2 3 63 2 Explosive 8 | . . 2 6 . Electromagnetic 74 | 6 60 8 . . Robot Hit Streak 14 | 2 6 4 14 3 Robot Miss Streak 3 | 1 3 2 3 . Penetration Max . | . . . . . Secondary Targets 1 | . 1 . . . Max Gunslinging Chain 1 | . 1 . . . Shots Hit Robots 92 | 3 35 6 46 2 Core Hits 51 | 3 16 6 25 1 Critical Kills 3 | . . . 3 . Critical Parts Destroyed . | . . . . . Critical Strikes 5 | . . 1 4 . Meltdown 3 | . . . 3 . Blast 1 | . . . 1 . Corrupt 1 | . . 1 . . Melee Attacks . | . . . . . Impact . | . . . . . Slashing . | . . . . . Piercing . | . . . . . Sneak Attacks . | . . . . . Combat Hostiles . | . . . . . Follow-up Attacks . | . . . . . Damage Inflicted 3153 | 70 716 266 2043 58 Guns 676 | 43 528 93 12 . Cannons 1002 | . . 20 924 58 Explosions 1475 | 27 188 153 1107 . Melee . | . . . . . Ramming . | . . . . . Kinetic 973 | . . 20 953 . Thermal 1060 | 27 188 . 787 58 Explosive 456 | . . 153 303 . Electromagnetic 664 | 43 528 93 . . Impact . | . . . . . Slashing . | . . . . . Piercing . | . . . . . Highest Corruption 4 | . 4 4 4 4 Average Corruption 3 | . 3 4 4 4 Corruption Purged . | . . . . . Corruption Blocked . | . . . . . Effects 86 | . 14 22 50 . Message Errors 18 | . 2 4 12 . Matter Fused 22 | . 3 8 11 . Heat Flow Errors 15 | . 5 3 7 . Energy Discharges 11 | . 1 4 6 . Data Loss (minor) 10 | . 2 3 5 . Data Loss (major) 2 | . 1 . 1 . Misfires 6 | . . . 6 . Alerts 2 | . . . 2 . Overload Shots . | . . . . . Overflow Damage 35 | . . . 35 . Projectiles . | . . . . . Explosions 35 | . . . 35 . Melee . | . . . . . Knockbacks 2 | . . . 2 . Impact . | . . . . . Kinetic 2 | . . . 2 . Secondary . | . . . . . Self-Inflicted Damage 86 | . . 25 61 . Shots 2 | . . 1 1 . Rammed . | . . . . . Targets Rammed . | . . . . . Kicked . | . . . . . Crushed . | . . . . . Highest Temperature 271 | 54 271 257 247 99 Average Temperature 74 | 29 79 75 70 57 Received Heat Transfer 276 | . 96 69 102 9 Siege Activations . | . . . . . Martial Activations . | . . . . . Shielding Activations . | . . . . . Robots Disrupted . | . . . . . Combat Hostiles . | . . . . . Robots Corrupted 2 | . 2 . . . Combat Hostiles 1 | . 1 . . . Parts Fried 4 | . 4 . . . Impact Corruptions . | . . . . . Robots Melted 3 | . . . 3 . Combat Hostiles 3 | . . . 3 . Parts Melted 5 | . . . 5 . Heat Transferred 1397 | 50 200 . 1073 74 Parts Sabotaged . | . . . . . Parts Stolen . | . . . . . Parts Stripped . | . . . . . Power Chain Reactions 3 | 1 2 . . . Alert | -11 -10 -10 -10 -7 ------- Run | Yrd Mat Min Sub Rec Maximum Alert Level . | . . . . . Low Security (%) 100 | 100 100 100 . 100 Level 1 . | . . . . . Level 2 . | . . . . . Level 3 . | . . . . . Level 4 . | . . . . . Level 5 . | . . . . . High Security . | . . . . . Max Security . | . . . . . Peak Influence 199 | 10 199 87 . 127 Initial 97 | . . 6 . 97 Average 44 | . 74 11 . 113 Influence Increases 877 | 10 345 137 345 40 Destroy 0b10 Robot/C 460 | . 140 100 220 . Destroy 0b10 Robot/NC 45 | 10 35 . . . Destroy Leader 80 | . 40 20 20 . Trap Triggered on 0b10 10 | . . . . 10 Successful Hack 22 | . 22 . . . Select Force Hacks 60 | . 30 . . 30 Disable Machine 45 | . 45 . . . Destroy Structure 50 | . 33 17 . . Lose Combat Pursuer 105 | . . . 105 . Influence Decreases 760 | 10 329 153 142 126 Entered New Map 116 | . . 10 . 106 Time Decay 634 | 10 329 143 142 10 Lost Part 10 | . . . . 10 Squads Dispatched 3 | . 3 . . . Investigation 1 | . 1 . . . Extermination . | . . . . . Reinforcement 2 | . 2 . . . Assault . | . . . . . Garrison . | . . . . . Intercept . | . . . . . Searches Triggered . | . . . . . Construction Impeded . | . . . . . Haulers Reinforced . | . . . . . Active Scanning Responses . | . . . . . Cargo Convoy Interrupts . | . . . . . Stealth | -11 -10 -10 -10 -7 --------- Run | Yrd Mat Min Sub Rec Distress Signals . | . . . . . Communications Jammed . | . . . . . Distress Signals . | . . . . . Times Spotted 49 | . 11 5 25 8 Peak Tracking Total 8 | . 4 3 6 8 Tactical Retreats 1 | . . . 1 . Traps | -11 -10 -10 -10 -7 ------- Run | Yrd Mat Min Sub Rec Traps Triggered 4 | . 2 . 2 . Indirectly . | . . . . . Trap Hack Attempts . | . . . . . Triggered . | . . . . . Disarmed . | . . . . . Reprogrammed . | . . . . . Reused 1 | . . . . 1 Traps Extracted . | . . . . . Installed 1 | . . . . 1 Triggered 1 | . . . . 1 Most Traps Carried 1 | . . . 1 1 Machines | -11 -10 -10 -10 -7 ---------- Run | Yrd Mat Min Sub Rec Machines Disabled 8 | . 3 . 5 . Max in Single Turn 4 | . 2 . 4 . Machines Repaired . | . . . . . Machines Dismantled . | . . . . . Machines Sabotaged . | . . . . . Overloaded Fab Kills . | . . . . . Hacking | -11 -10 -10 -10 -7 --------- Run | Yrd Mat Min Sub Rec Machines Accessed 11 | . 7 1 2 1 Terminals 7 | . 6 1 . . Fabricators . | . . . . . Repair Stations . | . . . . . Recycling Units 2 | . 1 . . 1 Scanalyzers . | . . . . . Garrison Access . | . . . . . Total Hacks 26 | . 17 3 4 2 Successful 14 | . 8 1 4 1 Failed 11 | . 8 2 . 1 Catastrophic 2 | . 1 1 . . Database Lockouts 1 | . 1 . . . Manual 18 | . 13 3 . 2 Terminals 18 | . 15 3 . . Fabricators . | . . . . . Repair Stations . | . . . . . Recycling Units 4 | . 2 . . 2 Scanalyzers . | . . . . . Garrison Access . | . . . . . Terminal Hacks 10 | . 5 1 4 . Record 3 | . . . 3 . Part Schematic 1 | . 1 . . . Robot Analysis 3 | . 2 1 . . Prototype ID Bank 2 | . 2 . . . Proto ID Catalog 1 | . . . 1 . Fabricator Hacks . | . . . . . Repair Station Hacks . | . . . . . Recycling Unit Hacks . | . . . . . Scanalyzer . | . . . . . Garrison Access Hacks . | . . . . . Unauthorized Hacks 4 | . 3 . . 1 Terminals 2 | . 2 . . . Botnet 2 | . 2 . . . Fabricators . | . . . . . Repair Stations . | . . . . . Recycling Units 2 | . 1 . . 1 Tunnel 2 | . 1 . . 1 Scanalyzers . | . . . . . Garrison Access . | . . . . . Data Cores Recovered . | . . . . . Used . | . . . . . Hacking Detections 7 | . 6 . . 1 Full Trace Events . | . . . . . Feedback Events . | . . . . . Feedback Blocked . | . . . . . Robot Schematics Acquired . | . . . . . Robots Built . | . . . . . Authchips . | . . . . . Time . | . . . . . Total Robot Build Rating . | . . . . . Part Schematics Acquired 1 | . 1 . . . Parts Built . | . . . . . Authchips . | . . . . . Time . | . . . . . Total Part Build Rating . | . . . . . Parts Repaired . | . . . . . Time . | . . . . . Parts Recycled . | . . . . . Recycled Matter . | . . . . . Retrieved Matter . | . . . . . Retrieved Components . | . . . . . Parts Scanalyzed . | . . . . . Part Schematics Acquired . | . . . . . Parts Damaged . | . . . . . Bothacking | -11 -10 -10 -10 -7 ------------ Run | Yrd Mat Min Sub Rec Used RIF Installer . | . . . . . Robots Hacked . | . . . . . Non-combat . | . . . . . Combat . | . . . . . Robot Hacks Applied . | . . . . . Relay Couplers Released . | . . . . . Fabnet Peak Effective % . | . . . . . Robots Rewired . | . . . . . Allies Hacked . | . . . . . Hacks Repelled . | . . . . . Allies | -11 -10 -10 -10 -7 -------- Run | Yrd Mat Min Sub Rec Total Allies . | . . . . . Largest Group . | . . . . . Highest-Rated Group . | . . . . . Highest-Rated Ally . | . . . . . Total Orders . | . . . . . Ally Attacks . | . . . . . Total Damage . | . . . . . Kills . | . . . . . Allies Corrupted . | . . . . . Allies Melted . | . . . . . Intel | -11 -10 -10 -10 -7 ------- Run | Yrd Mat Min Sub Rec Active Infowar (turns) 4670 | 14 1063 993 2600 . Seismic 4670 | 14 1063 993 2600 . Robot Analysis Total 3 | . 2 1 . . Derelict Logs Recovered 4 | . . 3 1 . Drone Launches . | . . . . . Drone Recoveries . | . . . . . Exploration | -11 -10 -10 -10 -7 ------------- Run | Yrd Mat Min Sub Rec Turns Passed 4768 | 76 1063 993 2600 36 Spaces Moved 2517 | 39 583 481 1389 25 Core 26 | 9 . . . 17 Treads 2491 | 30 583 481 1389 8 Legs . | . . . . . Wheels . | . . . . . Hover . | . . . . . Flight . | . . . . . Fastest Speed 50 | 50 160 160 160 50 Average Speed 161 | 137 160 160 164 110 Slowest Speed 250 | 160 160 160 250 250 Overloaded Moves . | . . . . . Propulsion Burnouts . | . . . . . Robots Hopped . | . . . . . Potential Cave-ins . | . . . . . Cave-ins Triggered . | . . . . . Exploration Rate (%) 56 | 3 89 99 85 7 Regions Visited 4 Branch Regions 3 Pre-discovered Areas 8 | . 1 3 3 1 Known Exits Taken . | . . . . . Unknown Exits Taken 4 | 1 1 1 1 . Scrap Searched 13 | . . 3 10 . Spaces Dug 6 | . 2 . 4 . Terrain Destroyed 171 | 2 37 18 114 . Melee . | . . . . . Projectile 9 | . 2 . 7 . AOE 162 | 2 35 18 107 . Terrain Rammed . | . . . . . Walls Destroyed . | . . . . . Machines Disabled . | . . . . . Actions | -11 -10 -10 -10 -7 --------- Run | Yrd Mat Min Sub Rec Total 2992 | 52 646 682 1582 30 Wait 249 | . 12 178 59 . Move 2513 | 38 582 480 1388 25 Hop . | . . . . . Pick Up 27 | 4 11 3 9 . Fast Attach 14 | 7 . 2 5 . Attach 6 | . . 2 3 1 Detach 2 | . . . 2 . Swap 37 | . 6 4 25 2 Drop 20 | . 3 3 14 . Fire 123 | 3 32 10 77 1 Melee . | . . . . . Ram . | . . . . . Kick . | . . . . . Crush . | . . . . . Escape Stasis . | . . . . . Rewire . | . . . . . Trap 1 | . . . . 1 Miscellaneous . | . . . . . Route ------- -11/Scrapyard -10/Materials (discovered 6 exits: [*Mat x3] / *Min x2 / *Sub) -10/Mines (discovered 4 exits: [*Mat x2] / [*Exi] / *Sub) -10/Subcaves (discovered 3 exits: [*Mat x2] / *Rec) -7/Recycling History --------- Turn | Location | Event 11 | -11/Scrapyard | Discovered new exit (range 16) 77 | -11/Scrapyard | Entered Materials 78 | -10/Materials | Met a group of wandering Federalists 205 | -10/Materials | Discovered new exit (range 7) 312 | -10/Materials | Build established: Mutant 503 | -10/Materials | Discovered new exit (range 11) 526 | -10/Materials | Discovered new exit (range 16) 763 | -10/Materials | Discovered new exit (range 15) 1006 | -10/Materials | Discovered new exit (range 15) 1057 | -10/Materials | Central database locked down 1075 | -10/Materials | Discovered new exit (range 7) 1140 | -10/Materials | Entered Mines 1142 | -10/Mines | YI-UF0 nonchalantly dropped a Grenade Launcher on the ground 1490 | -10/Mines | Discovered new exit (range 7) 1647 | -10/Mines | Deemed a non-threat by the Exiles lab entrance 1647 | -10/Mines | Discovered new exit (range 5) 1734 | -10/Mines | Learned location of 2 exits from Materials 1774 | -10/Mines | Learned location of Zion (-6) 1777 | -10/Mines | Discovered new exit (range 14) 1781 | -10/Mines | Learned location of Storage (-7) 2124 | -10/Mines | Discovered new exit (range 4) 2133 | -10/Mines | Entered Subcaves 2134 | -10/Subcaves | Approached by a straggling Scientist 2424 | -10/Subcaves | A swath of the cavern ceiling suddenly collapsed 2516 | -10/Subcaves | Discovered new exit (range 8) 2648 | -10/Subcaves | Visited 4L-MR0's lab 2670 | -10/Subcaves | Found Arachnoskeleton 2901 | -10/Subcaves | A swath of the cavern ceiling suddenly collapsed 3067 | -10/Subcaves | Visited Clippyterm 3072 | -10/Subcaves | Learned location of Section 7 (-2) 3215 | -10/Subcaves | Disturbed a concealed Subdweller 3298 | -10/Subcaves | Ambushed by Subdwellers from Twisted Machinery 3330 | -10/Subcaves | Shifting Twisted Machinery released Sub. Laser 3563 | -10/Subcaves | Core integrity fell below 50% 3595 | -10/Subcaves | Build established: Scavenger-Mutant 4087 | -10/Subcaves | Met a Zionite searching for "candidates" 4154 | -10/Subcaves | Discovered new exit (range 5) 4491 | -10/Subcaves | Build established: Mutant 4540 | -10/Subcaves | Discovered new exit (range 16) 4733 | -10/Subcaves | Entered Recycling 4760 | -7/Recycling | Released all parts (7) 4767 | -7/Recycling | Core integrity fell below 20% 4769 | -7/Recycling | Destroyed by H-55 Commando with Assault Rifle Last Messages --------------- 04752_ H-55 Commando springs to life. 04752_ Slug penetrates Wall. 04752_ Sub. Power Source destroyed. 04752_ G-47 Trooper springs to life. 04752_ H-55 Commando springs to life. 04758_ Slug penetrates Wall. 04760_ Released Mak. System Restoration Module. 04760_ Released Lgt. Treads. 04760_ Released Lrg. Storage Unit. 04760_ Released Sub. Beam Cannon. 04760_ Released Spk. Treads. 04760_ Released Sub. Power Source. 04760_ Released Sub. Beam Cannon. 04762_ Installed Shrapnel Trap. 04762_ Slug penetrates G-47 Trooper. 04764_ B-48 Gladiator triggered Shrapnel Trap. 04764_ An expanding cloud of shrapnel blasts out in all directions. 04766_ Slug penetrates Wall. 04769_ Penetrated by Slug. Map ----- +----------------------------------------------------+ | ????????????????????????????????????????????????? | | ????????????????????????????????????????????????? | | ????????????????????????????????????????????????? | | ????????????????????????????????????????????????? | | ????????????????????????????????????????????????? | | ????????????????????????????????????????????????? | | ????????????????????????????????????????????????? | | ????????????????????????????????????????????????? | | ????????????????????????????????????????????????? | | ????????????????????????????????????????????????? | | ????????????????????????????????????????????????? | | ????????????????????????????????????????????????? | | ?????????T ????????????????????????????????????? | | ???????? ???????????????????????????????????? | | ???????? ???????????????????????????????????? | | ????????# #???????????????????????????????????? | | ????????# #???????????????????????????????????? | | ??##???## #???????????????????????????????????? | | ??# ??%# #???????????????????????????????????? | | ??# ???+ #???????????????????????????????????? | | ??# ??# #???????????????????????????????????? | | ??#%!%??# #???????????????????????????????????? | | ??# %= ?# #???????#####???????????????????????? | | ??# ?# ##??????# //#???????????????????????? | | ??# # ""#######// #########???????????????? | | ??# "b! p @ #???????????????? | | ??# ="!=] #???????????????? | | ??# % "=] b #???????????????? | | ??# !"]! ;;###+########### #???????????????? | | ??#= !"]* "#??????????????? #???????????????? | | ??# %/ #] Y"#???????????????? #???????????????? | | ??# ??# ""#?????????????????????????????????? | | ??# !!??# ###?????????????????????????????????? | | ??###???# #???????????????????????????????????? | | ????????# #???????????????????????????????????? | | ????????#####???????????????????????????????????? | | ????????????????????????????????????????????????? | | ????????????????????????????????????????????????? | | ????????????????????????????????????????????????? | | ????????????????????????????????????????????????? | | ????????????????????????????????????????????????? | | ????????????????????????????????????????????????? | | ????????????????????????????????????????????????? | | ????????????????????????????????????????????????? | | ????????????????????????????????????????????????? | | ????????????????????????????????????????????????? | | ????????????????????????????????????????????????? | | ????????????????????????????????????????????????? | | ????????????????????????????????????????????????? | | ????????????????????????????????????????????????? | +----------------------------------------------------+ Best States ------------- Heat Dissipation 25 Energy Generation 15 Energy Capacity 250 Matter Stores 300 Matter Capacity 300 Sight Range 16 Terrain Scan Density 10 Evasion (%) 40 Recoil Reduction 2 Item Schematics ----------------- Hcp. Storage Unit | -10/Materials | Hacked Robot Schematics ------------------ None Fabricated ------------ Nothing Repaired ---------- Nothing Alien Tech Used ----------------- None Achievements -------------- None Challenges ------------ None Game ------ Seed LobotomyResetCasing Manual? 0 Play Time 00:30:12 Cumulative 409.0 hours Start 2025.05.23 @ 17:09:19 End 2025.05.23 @ 17:39:03 Sessions 1 Manual Loads 0 Difficulty Rogue Special Mode None Game No. 93 Rogue 93 Adventurer 0 Explorer 0 Win Type - Total 30 Types 16/1/6/1/1/0/2/2/1/0 Lore% 83 Gallery% 77 Achievement% 81 Wizard Run 0 Options --------- Layout 1 ASCII 0 Keyboard 0 Movement Mouse Keybinds 0 Fullscreen 1 Font 24/Smallcaps Map View 50x35 Zoom Use 0% Tactical HUD 1 Map Filters NONE Filters NONE Steam 1 RUN: 8ea8ef3d-1973-41fd-b914-20ff29ef927a